[Event "Titled Tuesday Blitz May 9 Early 2023"]
[White "Andreev, Konstantin"]
[Black "Wagner, Dennis"]
[WhiteFideId "24239305"]
[BlackFideId "24650684"]
[WhiteElo "2106"]
[BlackElo "2478"]
[Result "0-1"]
[Round "02"]
[TimeControl "180+2"]
[Date "2023.05.09"]
[WhiteClock "0:00:02"]
[BlackClock "0:00:02"]

1. e4 {[%clk 0:03:00]}  c5 {[%clk 0:02:57]} 2. Nf3 {[%clk 0:03:01]}  d6 {[%clk 0:02:56]} 3. d4 {[%clk 0:03:01]}  cxd4 {[%clk 0:02:56]} 4. Nxd4 {[%clk 0:03:01]}  Nf6 {[%clk 0:02:57]} 5. Nc3 {[%clk 0:03:02]}  a6 {[%clk 0:02:57]} 6. h4 {[%clk 0:03:03]}  b5 {[%clk 0:02:51]} 7. a4 {[%clk 0:03:01]}  b4 {[%clk 0:02:48]} 8. Nd5 {[%clk 0:03:01]}  e6 {[%clk 0:02:45]} 9. Nxf6+ {[%clk 0:03:00]}  Qxf6 {[%clk 0:02:46]} 10. Bg5 {[%clk 0:02:53]}  Qe5 {[%clk 0:02:44]} 11. Qd3 {[%clk 0:02:32]}  Bb7 {[%clk 0:02:43]} 12. O-O-O {[%clk 0:02:19]}  h6 {[%clk 0:02:36]} 13. Be3 {[%clk 0:01:58]}  Qxe4 {[%clk 0:02:34]} 14. Qc4 {[%clk 0:01:57]}  Nd7 {[%clk 0:02:22]} 15. Bd3 {[%clk 0:01:51]}  Qd5 {[%clk 0:02:06]} 16. Qxb4 {[%clk 0:01:49]}  Nc5 {[%clk 0:01:40]} 17. Bc4 {[%clk 0:01:20]}  Qxg2 {[%clk 0:01:37]} 18. Rhg1 {[%clk 0:01:16]}  Qe4 {[%clk 0:01:36]} 19. Rde1 {[%clk 0:00:59]}  d5 {[%clk 0:01:33]} 20. Bb5+ {[%clk 0:00:45]}  axb5 {[%clk 0:00:48]} 21. Qxb5+ {[%clk 0:00:46]}  Nd7 {[%clk 0:00:25]} 22. Qxb7 {[%clk 0:00:39]}  Rb8 {[%clk 0:00:25]} 23. Qc7 {[%clk 0:00:38]}  Bb4 {[%clk 0:00:19]} 24. Nc6 {[%clk 0:00:30]}  O-O {[%clk 0:00:08]} 25. Nxb8 {[%clk 0:00:20]}  Nxb8 {[%clk 0:00:06]} 26. Qg3 {[%clk 0:00:10]}  g6 {[%clk 0:00:04]} 27. Rd1 {[%clk 0:00:06]}  Rc8 {[%clk 0:00:04]} 28. c3 {[%clk 0:00:03]}  Na6 {[%clk 0:00:03]} 29. Kd2 {[%clk 0:00:03]}  Nc5 {[%clk 0:00:02]} 30. cxb4 {[%clk 0:00:03]}  Nb3+ {[%clk 0:00:02]} 31. Ke1 {[%clk 0:00:03]}  Rc2 {[%clk 0:00:02]} 32. Kf1 {[%clk 0:00:02]}  d4 {[%clk 0:00:01]} 33. Rxd4 {[%clk 0:00:02]}  Nxd4 {[%clk 0:00:01]} 34. Qb8+ {[%clk 0:00:02]}  Kh7 {[%clk 0:00:01]} 35. Bxd4 {[%clk 0:00:02]}  Qf3 {[%clk 0:00:02]} 36. Qg3 {[%clk 0:00:02]}  Rc1# {[%clk 0:00:02]} 0-1


[Site "https://www.chess.com"]

[Event "Titled Tuesday Blitz May 9 Early 2023"]
[White "Nguyen Hong Nhung"]
[Black "Rozman, Levy"]
[WhiteFideId "12412201"]
[BlackFideId "2039877"]
[WhiteElo "1996"]
[BlackElo "2376"]
[Result "0-1"]
[Round "02"]
[TimeControl "180+2"]
[Date "2023.05.09"]
[WhiteClock "0:00:03"]
[BlackClock "0:00:06"]

1. e4 {[%clk 0:02:58]}  c6 {[%clk 0:02:58]} 2. d4 {[%clk 0:02:58]}  d5 {[%clk 0:02:58]} 3. f3 {[%clk 0:02:59]}  e5 {[%clk 0:02:54]} 4. dxe5 {[%clk 0:02:56]}  Bc5 {[%clk 0:02:54]} 5. Nc3 {[%clk 0:02:55]}  Qb6 {[%clk 0:02:51]} 6. Na4 {[%clk 0:02:55]}  Bf2+ {[%clk 0:02:44]} 7. Ke2 {[%clk 0:02:55]}  Qd4 {[%clk 0:02:44]} 8. Qxd4 {[%clk 0:02:55]}  Bxd4 {[%clk 0:02:45]} 9. c3 {[%clk 0:02:28]}  Bxe5 {[%clk 0:02:44]} 10. exd5 {[%clk 0:02:26]}  cxd5 {[%clk 0:02:30]} 11. Be3 {[%clk 0:02:10]}  Nf6 {[%clk 0:02:26]} 12. Kf2 {[%clk 0:02:03]}  O-O {[%clk 0:02:22]} 13. Ne2 {[%clk 0:01:54]}  b6 {[%clk 0:02:21]} 14. b3 {[%clk 0:01:41]}  Nc6 {[%clk 0:02:12]} 15. Rc1 {[%clk 0:01:33]}  Re8 {[%clk 0:02:05]} 16. Nb2 {[%clk 0:01:29]}  Bd6 {[%clk 0:01:56]} 17. Nd3 {[%clk 0:01:19]}  Bf5 {[%clk 0:01:54]} 18. Nd4 {[%clk 0:01:17]}  Ne7 {[%clk 0:01:45]} 19. Bg5 {[%clk 0:01:08]}  Bg6 {[%clk 0:01:36]} 20. Bxf6 {[%clk 0:01:03]}  gxf6 {[%clk 0:01:36]} 21. Be2 {[%clk 0:00:58]}  Rac8 {[%clk 0:01:35]} 22. Rhd1 {[%clk 0:00:56]}  Kg7 {[%clk 0:01:27]} 23. g3 {[%clk 0:00:56]}  h5 {[%clk 0:01:26]} 24. Nb5 {[%clk 0:00:51]}  Bb8 {[%clk 0:01:20]} 25. Nb4 {[%clk 0:00:48]}  Rcd8 {[%clk 0:01:14]} 26. Na6 {[%clk 0:00:43]}  Bd6 {[%clk 0:01:05]} 27. a4 {[%clk 0:00:38]}  h4 {[%clk 0:00:56]} 28. Rd2 {[%clk 0:00:21]}  Nf5 {[%clk 0:00:52]} 29. Nxd6 {[%clk 0:00:20]}  Rxd6 {[%clk 0:00:51]} 30. Rcd1 {[%clk 0:00:19]}  Ne3 {[%clk 0:00:49]} 31. Rc1 {[%clk 0:00:17]}  Nf5 {[%clk 0:00:28]} 32. Nc7 {[%clk 0:00:17]}  Red8 {[%clk 0:00:23]} 33. Nb5 {[%clk 0:00:17]}  R6d7 {[%clk 0:00:24]} 34. Bd3 {[%clk 0:00:15]}  a6 {[%clk 0:00:20]} 35. Bxf5 {[%clk 0:00:15]}  Bxf5 {[%clk 0:00:19]} 36. Nd4 {[%clk 0:00:15]}  Bg6 {[%clk 0:00:20]} 37. Rcd1 {[%clk 0:00:16]}  hxg3+ {[%clk 0:00:19]} 38. hxg3 {[%clk 0:00:17]}  Rc8 {[%clk 0:00:19]} 39. Rc1 {[%clk 0:00:16]}  Rdc7 {[%clk 0:00:19]} 40. Ne2 {[%clk 0:00:17]}  Rc5 {[%clk 0:00:17]} 41. Ke3 {[%clk 0:00:15]}  b5 {[%clk 0:00:17]} 42. Kd4 {[%clk 0:00:16]}  b4 {[%clk 0:00:16]} 43. c4 {[%clk 0:00:13]}  dxc4 {[%clk 0:00:16]} 44. Rxc4 {[%clk 0:00:13]}  Rxc4+ {[%clk 0:00:10]} 45. bxc4 {[%clk 0:00:14]}  a5 {[%clk 0:00:05]} 46. Rb2 {[%clk 0:00:13]}  Rd8+ {[%clk 0:00:04]} 47. Kc5 {[%clk 0:00:12]}  Bd3 {[%clk 0:00:05]} 48. Kb5 {[%clk 0:00:10]}  Rc8 {[%clk 0:00:03]} 49. Kxa5 {[%clk 0:00:10]}  Rxc4 {[%clk 0:00:03]} 50. Nf4 {[%clk 0:00:10]}  Bf1 {[%clk 0:00:02]} 51. Nd5 {[%clk 0:00:09]}  Rc5+ {[%clk 0:00:03]} 52. Kxb4 {[%clk 0:00:09]}  Rxd5 {[%clk 0:00:03]} 53. Rf2 {[%clk 0:00:08]}  Ba6 {[%clk 0:00:03]} 54. f4 {[%clk 0:00:07]}  Bc8 {[%clk 0:00:03]} 55. Kc4 {[%clk 0:00:08]}  Be6 {[%clk 0:00:03]} 56. Kb4 {[%clk 0:00:08]}  f5 {[%clk 0:00:03]} 57. a5 {[%clk 0:00:08]}  Rd4+ {[%clk 0:00:04]} 58. Kc5 {[%clk 0:00:08]}  Ra4 {[%clk 0:00:04]} 59. Kb6 {[%clk 0:00:08]}  Ra3 {[%clk 0:00:05]} 60. a6 {[%clk 0:00:08]}  Bd5 {[%clk 0:00:05]} 61. Rd2 {[%clk 0:00:07]}  Be4 {[%clk 0:00:05]} 62. a7 {[%clk 0:00:06]}  Rb3+ {[%clk 0:00:05]} 63. Ka6 {[%clk 0:00:05]}  Rxg3 {[%clk 0:00:06]} 64. Ra2 {[%clk 0:00:04]}  Rf3 {[%clk 0:00:06]} 65. Kb6 {[%clk 0:00:04]}  Rxf4 {[%clk 0:00:06]} 66. Ra4 {[%clk 0:00:04]}  Rf1 {[%clk 0:00:03]} 67. Rxe4 {[%clk 0:00:04]}  Rb1+ {[%clk 0:00:03]} 68. Kc5 {[%clk 0:00:03]}  Ra1 {[%clk 0:00:03]} 69. Re7 {[%clk 0:00:03]}  f4 {[%clk 0:00:03]} 70. Kd4 {[%clk 0:00:03]}  Ra4+ {[%clk 0:00:03]} 71. Kd3 {[%clk 0:00:03]}  Kf6 {[%clk 0:00:04]} 72. Rb7 {[%clk 0:00:03]}  Kg6 {[%clk 0:00:04]} 73. Rb4 {[%clk 0:00:02]}  Ra3+ {[%clk 0:00:03]} 74. Ke2 {[%clk 0:00:02]}  Rxa7 {[%clk 0:00:03]} 75. Rxf4 {[%clk 0:00:03]}  Ra3 {[%clk 0:00:04]} 76. Rg4+ {[%clk 0:00:03]}  Kf5 {[%clk 0:00:04]} 77. Rc4 {[%clk 0:00:03]}  Ke5 {[%clk 0:00:04]} 78. Kf2 {[%clk 0:00:04]}  Kd5 {[%clk 0:00:04]} 79. Rb4 {[%clk 0:00:05]}  f6 {[%clk 0:00:05]} 80. Rf4 {[%clk 0:00:05]}  Ke6 {[%clk 0:00:05]} 81. Rb4 {[%clk 0:00:06]}  Ra6 {[%clk 0:00:05]} 82. Rb5 {[%clk 0:00:06]}  Ra4 {[%clk 0:00:05]} 83. Ke3 {[%clk 0:00:07]}  Ra3+ {[%clk 0:00:05]} 84. Ke2 {[%clk 0:00:07]}  Ra6 {[%clk 0:00:06]} 85. Ke3 {[%clk 0:00:07]}  Rd6 {[%clk 0:00:07]} 86. Ke4 {[%clk 0:00:07]}  Rd7 {[%clk 0:00:07]} 87. Kf4 {[%clk 0:00:08]}  Rd4+ {[%clk 0:00:06]} 88. Ke3 {[%clk 0:00:08]}  Rh4 {[%clk 0:00:07]} 89. Rb6+ {[%clk 0:00:08]}  Kf5 {[%clk 0:00:07]} 90. Rb5+ {[%clk 0:00:09]}  Kg6 {[%clk 0:00:08]} 91. Kf3 {[%clk 0:00:10]}  Ra4 {[%clk 0:00:07]} 92. Kg3 {[%clk 0:00:10]}  f5 {[%clk 0:00:07]} 93. Kf3 {[%clk 0:00:10]}  Kg5 {[%clk 0:00:07]} 94. Rb8 {[%clk 0:00:10]}  Ra3+ {[%clk 0:00:08]} 95. Kf2 {[%clk 0:00:10]}  Kg4 {[%clk 0:00:08]} 96. Rb4+ {[%clk 0:00:10]}  f4 {[%clk 0:00:08]} 97. Kg2 {[%clk 0:00:08]}  Ra2+ {[%clk 0:00:09]} 98. Kf1 {[%clk 0:00:07]}  Kg3 {[%clk 0:00:07]} 99. Rb8 {[%clk 0:00:06]}  Ra1+ {[%clk 0:00:07]} 100. Ke2 {[%clk 0:00:06]}  f3+ {[%clk 0:00:07]} 101. Ke3 {[%clk 0:00:06]}  Re1+ {[%clk 0:00:07]} 102. Kd2 {[%clk 0:00:06]}  Re7 {[%clk 0:00:06]} 103. Rg8+ {[%clk 0:00:06]}  Kf2 {[%clk 0:00:06]} 104. Rg6 {[%clk 0:00:06]}  Kf1 {[%clk 0:00:05]} 105. Rg8 {[%clk 0:00:05]}  f2 {[%clk 0:00:06]} 106. Rg6 {[%clk 0:00:04]}  Rd7+ {[%clk 0:00:05]} 107. Ke3 {[%clk 0:00:04]}  Ke1 {[%clk 0:00:06]} 108. Ra6 {[%clk 0:00:04]}  f1=Q {[%clk 0:00:05]} 109. Ra1+ {[%clk 0:00:03]}  Rd1 {[%clk 0:00:06]} 0-1


[Site "https://www.chess.com"]

[Event "Titled Tuesday Blitz May 9 Early 2023"]
[White "Pham, Le Thao Nguyen"]
[Black "Karthik Rajaa"]
[WhiteFideId "12401226"]
[BlackFideId "25035215"]
[WhiteElo "2286"]
[BlackElo "2215"]
[Result "0-1"]
[Round "02"]
[TimeControl "180+2"]
[Date "2023.05.09"]
[WhiteClock "0:00:00"]
[BlackClock "0:00:37"]

1. d4 {[%clk 0:02:28]}  Nf6 {[%clk 0:02:59]} 2. Nf3 {[%clk 0:02:28]}  g6 {[%clk 0:02:58]} 3. g3 {[%clk 0:02:23]}  Bg7 {[%clk 0:02:57]} 4. Bg2 {[%clk 0:02:24]}  O-O {[%clk 0:02:58]} 5. O-O {[%clk 0:02:25]}  d6 {[%clk 0:02:59]} 6. b3 {[%clk 0:02:24]}  b5 {[%clk 0:02:59]} 7. Bb2 {[%clk 0:02:24]}  Bb7 {[%clk 0:02:59]} 8. Nbd2 {[%clk 0:02:24]}  Nbd7 {[%clk 0:02:58]} 9. c4 {[%clk 0:02:23]}  bxc4 {[%clk 0:02:59]} 10. Nxc4 {[%clk 0:02:22]}  c5 {[%clk 0:02:59]} 11. Rc1 {[%clk 0:02:17]}  a5 {[%clk 0:02:59]} 12. a4 {[%clk 0:01:38]}  Ra6 {[%clk 0:02:58]} 13. Ne1 {[%clk 0:01:08]}  Bxg2 {[%clk 0:02:57]} 14. Nxg2 {[%clk 0:01:06]}  Qa8 {[%clk 0:02:43]} 15. Nf4 {[%clk 0:00:59]}  cxd4 {[%clk 0:02:32]} 16. Nd3 {[%clk 0:00:39]}  e5 {[%clk 0:02:29]} 17. Ba3 {[%clk 0:00:27]}  Ne4 {[%clk 0:02:26]} 18. f3 {[%clk 0:00:22]}  Nc3 {[%clk 0:01:53]} 19. Qd2 {[%clk 0:00:22]}  Qb8 {[%clk 0:01:36]} 20. e3 {[%clk 0:00:09]}  Bh6 {[%clk 0:01:34]} 21. f4 {[%clk 0:00:08]}  Qxb3 {[%clk 0:01:32]} 22. Bxd6 {[%clk 0:00:03]}  Qxc4 {[%clk 0:01:30]} 23. Bxf8 {[%clk 0:00:04]}  Bxf8 {[%clk 0:01:29]} 24. Nxe5 {[%clk 0:00:04]}  Nxe5 {[%clk 0:01:28]} 25. fxe5 {[%clk 0:00:04]}  Bc5 {[%clk 0:01:29]} 26. Kh1 {[%clk 0:00:02]}  Qd5+ {[%clk 0:01:22]} 27. Qg2 {[%clk 0:00:03]}  Qxg2+ {[%clk 0:00:52]} 28. Kxg2 {[%clk 0:00:04]}  Re6 {[%clk 0:00:52]} 29. exd4 {[%clk 0:00:04]}  Bxd4 {[%clk 0:00:53]} 30. Rf6 {[%clk 0:00:03]}  Rxf6 {[%clk 0:00:52]} 31. exf6 {[%clk 0:00:03]}  Bxf6 {[%clk 0:00:53]} 32. Kf3 {[%clk 0:00:03]}  Nxa4 {[%clk 0:00:49]} 33. Rc8+ {[%clk 0:00:04]}  Kg7 {[%clk 0:00:49]} 34. Ra8 {[%clk 0:00:04]}  Bc3 {[%clk 0:00:50]} 35. Rc8 {[%clk 0:00:03]}  Bb4 {[%clk 0:00:49]} 36. Rc4 {[%clk 0:00:04]}  Nb6 {[%clk 0:00:48]} 37. Rc6 {[%clk 0:00:04]}  Nd5 {[%clk 0:00:47]} 38. h4 {[%clk 0:00:03]}  Nc3 {[%clk 0:00:46]} 39. Ra6 {[%clk 0:00:03]}  h5 {[%clk 0:00:46]} 40. Ke3 {[%clk 0:00:03]}  f5 {[%clk 0:00:38]} 41. Kf4 {[%clk 0:00:03]}  Kh6 {[%clk 0:00:38]} 42. Kf3 {[%clk 0:00:02]}  a4 {[%clk 0:00:38]} 43. Ra7 {[%clk 0:00:01]}  a3 {[%clk 0:00:37]} 44. Ke3 {[%clk 0:00:00]}  Bc5+ {[%clk 0:00:37]} 0-1


[Site "https://www.chess.com"]

[Event "Titled Tuesday Blitz May 9 Early 2023"]
[White "Leiva, Gianmarco"]
[Black "Titichoca Daza, Daniel"]
[WhiteFideId "3804399"]
[BlackFideId "3309550"]
[WhiteElo "2365"]
[BlackElo "2101"]
[Result "1-0"]
[Round "02"]
[TimeControl "180+2"]
[Date "2023.05.09"]
[WhiteClock "0:00:26"]
[BlackClock "0:00:00"]

1. c4 {[%clk 0:02:59]}  e6 {[%clk 0:02:55]} 2. Nc3 {[%clk 0:02:51]}  d5 {[%clk 0:02:53]} 3. d4 {[%clk 0:02:52]}  Nf6 {[%clk 0:02:51]} 4. Bg5 {[%clk 0:02:51]}  Be7 {[%clk 0:02:32]} 5. e3 {[%clk 0:02:46]}  O-O {[%clk 0:02:32]} 6. Nf3 {[%clk 0:02:44]}  a6 {[%clk 0:02:31]} 7. Rc1 {[%clk 0:02:39]}  Nbd7 {[%clk 0:02:28]} 8. cxd5 {[%clk 0:02:36]}  exd5 {[%clk 0:02:25]} 9. Bd3 {[%clk 0:02:31]}  Re8 {[%clk 0:02:14]} 10. Bxf6 {[%clk 0:02:23]}  Nxf6 {[%clk 0:02:14]} 11. Ne5 {[%clk 0:02:23]}  c5 {[%clk 0:02:08]} 12. O-O {[%clk 0:02:19]}  Bd6 {[%clk 0:01:58]} 13. f4 {[%clk 0:02:00]}  b5 {[%clk 0:01:36]} 14. Qf3 {[%clk 0:01:45]}  cxd4 {[%clk 0:01:16]} 15. exd4 {[%clk 0:01:44]}  Qb6 {[%clk 0:01:16]} 16. Qf2 {[%clk 0:01:22]}  b4 {[%clk 0:01:04]} 17. Na4 {[%clk 0:01:19]}  Qa5 {[%clk 0:00:56]} 18. Nc5 {[%clk 0:01:20]}  Bxc5 {[%clk 0:00:32]} 19. Rxc5 {[%clk 0:01:11]}  Qxa2 {[%clk 0:00:29]} 20. Rc7 {[%clk 0:01:08]}  Rf8 {[%clk 0:00:20]} 21. Rfc1 {[%clk 0:00:58]}  Ne4 {[%clk 0:00:15]} 22. Qc2 {[%clk 0:00:54]}  b3 {[%clk 0:00:12]} 23. Qc6 {[%clk 0:00:46]}  Qxb2 {[%clk 0:00:08]} 24. Bxe4 {[%clk 0:00:32]}  Qxd4+ {[%clk 0:00:07]} 25. Kh1 {[%clk 0:00:32]}  dxe4 {[%clk 0:00:06]} 26. Qxa8 {[%clk 0:00:31]}  b2 {[%clk 0:00:04]} 27. Rb1 {[%clk 0:00:30]}  Qd2 {[%clk 0:00:00]} 28. Rxc8 {[%clk 0:00:26]} 1-0


[Site "https://www.chess.com"]

[Event "Titled Tuesday Blitz May 9 Early 2023"]
[White "Xie, Bryan"]
[Black "Perez Gormaz, Matias"]
[WhiteFideId "30941296"]
[BlackFideId "3406342"]
[WhiteElo "2033"]
[BlackElo "2362"]
[Result "0-1"]
[Round "02"]
[TimeControl "180+2"]
[Date "2023.05.09"]
[WhiteClock "0:00:11"]
[BlackClock "0:00:05"]

1. d4 {[%clk 0:02:55]}  Nf6 {[%clk 0:02:57]} 2. Nf3 {[%clk 0:02:53]}  e6 {[%clk 0:02:58]} 3. Bf4 {[%clk 0:02:53]}  Be7 {[%clk 0:02:53]} 4. e3 {[%clk 0:02:51]}  b6 {[%clk 0:02:53]} 5. Bd3 {[%clk 0:02:50]}  c5 {[%clk 0:02:50]} 6. c3 {[%clk 0:02:47]}  Ba6 {[%clk 0:02:50]} 7. O-O {[%clk 0:02:45]}  O-O {[%clk 0:02:49]} 8. h3 {[%clk 0:02:36]}  Bxd3 {[%clk 0:02:49]} 9. Qxd3 {[%clk 0:02:37]}  d6 {[%clk 0:02:45]} 10. Nbd2 {[%clk 0:02:37]}  Nc6 {[%clk 0:02:40]} 11. a4 {[%clk 0:02:32]}  Qd7 {[%clk 0:02:37]} 12. Nc4 {[%clk 0:02:27]}  Rfd8 {[%clk 0:02:18]} 13. Rfd1 {[%clk 0:02:25]}  Qb7 {[%clk 0:02:15]} 14. Bh2 {[%clk 0:02:08]}  Rac8 {[%clk 0:02:11]} 15. Rac1 {[%clk 0:02:00]}  Bf8 {[%clk 0:02:11]} 16. Qb1 {[%clk 0:01:58]}  Qa6 {[%clk 0:01:56]} 17. Qa2 {[%clk 0:01:39]}  b5 {[%clk 0:01:43]} 18. Ncd2 {[%clk 0:01:29]}  cxd4 {[%clk 0:01:32]} 19. exd4 {[%clk 0:01:23]}  Rb8 {[%clk 0:01:20]} 20. b3 {[%clk 0:01:14]}  bxa4 {[%clk 0:01:14]} 21. bxa4 {[%clk 0:01:10]}  Nd5 {[%clk 0:01:06]} 22. Ne4 {[%clk 0:00:55]}  Na5 {[%clk 0:01:03]} 23. Nfd2 {[%clk 0:00:46]}  Qe2 {[%clk 0:00:47]} 24. Re1 {[%clk 0:00:42]}  Qd3 {[%clk 0:00:48]} 25. Qc2 {[%clk 0:00:18]}  Qa6 {[%clk 0:00:40]} 26. Ng5 {[%clk 0:00:18]}  g6 {[%clk 0:00:37]} 27. c4 {[%clk 0:00:14]}  Nb4 {[%clk 0:00:33]} 28. Qe4 {[%clk 0:00:14]}  Bg7 {[%clk 0:00:20]} 29. Qf4 {[%clk 0:00:11]}  Rb7 {[%clk 0:00:12]} 30. Nde4 {[%clk 0:00:11]}  Nd3 {[%clk 0:00:10]} 31. Qf3 {[%clk 0:00:11]}  Nxe1 {[%clk 0:00:10]} 32. Rxe1 {[%clk 0:00:12]}  f5 {[%clk 0:00:06]} 33. Nxd6 {[%clk 0:00:11]}  Rxd6 {[%clk 0:00:05]} 34. Bxd6 {[%clk 0:00:12]}  Qxd6 {[%clk 0:00:06]} 35. Rxe6 {[%clk 0:00:12]}  Rb1+ {[%clk 0:00:05]} 36. Qd1 {[%clk 0:00:11]}  Rxd1+ {[%clk 0:00:05]} 37. Re1 {[%clk 0:00:11]}  Rxe1# {[%clk 0:00:05]} 0-1


[Site "https://www.chess.com"]

[Event "Titled Tuesday Blitz May 9 Early 2023"]
[White "Aaditya Dhingra"]
[Black "Gatterer, Florian"]
[WhiteFideId "25678191"]
[BlackFideId "811688"]
[WhiteElo "2083"]
[BlackElo "2221"]
[Result "0-1"]
[Round "02"]
[TimeControl "180+2"]
[Date "2023.05.09"]
[WhiteClock "0:00:42"]
[BlackClock "0:00:18"]

1. Nf3 {[%clk 0:03:00]}  d5 {[%clk 0:02:59]} 2. c4 {[%clk 0:02:59]}  c6 {[%clk 0:02:59]} 3. g3 {[%clk 0:02:59]}  Nf6 {[%clk 0:02:58]} 4. Bg2 {[%clk 0:02:58]}  g6 {[%clk 0:02:58]} 5. b3 {[%clk 0:02:58]}  Bg7 {[%clk 0:02:58]} 6. Bb2 {[%clk 0:02:58]}  O-O {[%clk 0:02:58]} 7. O-O {[%clk 0:02:59]}  Bg4 {[%clk 0:02:55]} 8. d3 {[%clk 0:02:57]}  Bxf3 {[%clk 0:02:53]} 9. Bxf3 {[%clk 0:02:56]}  Nbd7 {[%clk 0:02:53]} 10. e3 {[%clk 0:02:54]}  Re8 {[%clk 0:02:52]} 11. Nc3 {[%clk 0:02:53]}  e6 {[%clk 0:02:49]} 12. d4 {[%clk 0:02:52]}  a5 {[%clk 0:02:45]} 13. Bg2 {[%clk 0:02:48]}  Nb6 {[%clk 0:02:40]} 14. Qd3 {[%clk 0:02:42]}  a4 {[%clk 0:02:38]} 15. c5 {[%clk 0:02:41]}  a3 {[%clk 0:02:38]} 16. Bc1 {[%clk 0:02:37]}  Nbd7 {[%clk 0:02:32]} 17. f4 {[%clk 0:02:33]}  b6 {[%clk 0:02:25]} 18. b4 {[%clk 0:02:32]}  bxc5 {[%clk 0:02:16]} 19. bxc5 {[%clk 0:02:32]}  Qa5 {[%clk 0:02:13]} 20. Rb1 {[%clk 0:02:30]}  Reb8 {[%clk 0:02:09]} 21. Bd2 {[%clk 0:02:28]}  Qa7 {[%clk 0:02:09]} 22. Qc2 {[%clk 0:02:16]}  h5 {[%clk 0:02:05]} 23. h3 {[%clk 0:02:15]}  Ne8 {[%clk 0:01:46]} 24. Rxb8 {[%clk 0:02:14]}  Rxb8 {[%clk 0:01:45]} 25. Rb1 {[%clk 0:02:13]}  Rxb1+ {[%clk 0:01:40]} 26. Qxb1 {[%clk 0:02:14]}  Nxc5 {[%clk 0:01:35]} 27. dxc5 {[%clk 0:02:12]}  Qxc5 {[%clk 0:01:27]} 28. Ne2 {[%clk 0:02:03]}  Nd6 {[%clk 0:01:16]} 29. Qb4 {[%clk 0:01:58]}  Qc2 {[%clk 0:01:07]} 30. Kf2 {[%clk 0:01:30]}  Nc4 {[%clk 0:01:00]} 31. Bc1 {[%clk 0:01:21]}  Qxa2 {[%clk 0:00:53]} 32. g4 {[%clk 0:01:18]}  hxg4 {[%clk 0:00:51]} 33. hxg4 {[%clk 0:01:19]}  Bb2 {[%clk 0:00:47]} 34. Qb8+ {[%clk 0:01:12]}  Kg7 {[%clk 0:00:34]} 35. Kf3 {[%clk 0:01:00]}  Bxc1 {[%clk 0:00:29]} 36. Nxc1 {[%clk 0:01:01]}  Qc2 {[%clk 0:00:22]} 37. Ne2 {[%clk 0:00:53]}  Qe4+ {[%clk 0:00:21]} 38. Kf2 {[%clk 0:00:52]}  Qxe3+ {[%clk 0:00:21]} 39. Ke1 {[%clk 0:00:47]}  a2 {[%clk 0:00:20]} 40. Qa8 {[%clk 0:00:46]}  Qd2+ {[%clk 0:00:19]} 41. Kf2 {[%clk 0:00:42]}  Qb2 {[%clk 0:00:18]} 0-1


[Site "https://www.chess.com"]

[Event "Titled Tuesday Blitz May 9 Early 2023"]
[White "Rangel, Daniel"]
[Black "Colas, Joshua"]
[WhiteFideId "2124475"]
[BlackFideId "2044447"]
[WhiteElo "2256"]
[BlackElo "2347"]
[Result "1-0"]
[Round "02"]
[TimeControl "180+2"]
[Date "2023.05.09"]
[WhiteClock "0:01:28"]
[BlackClock "0:00:00"]

1. c4 {[%clk 0:03:00]}  e6 {[%clk 0:02:58]} 2. g3 {[%clk 0:03:00]}  d5 {[%clk 0:02:58]} 3. Bg2 {[%clk 0:03:01]}  Nf6 {[%clk 0:02:58]} 4. Nf3 {[%clk 0:03:01]}  Be7 {[%clk 0:02:51]} 5. O-O {[%clk 0:03:02]}  O-O {[%clk 0:02:51]} 6. b3 {[%clk 0:03:02]}  b6 {[%clk 0:02:44]} 7. Bb2 {[%clk 0:03:01]}  Bb7 {[%clk 0:02:44]} 8. Ne5 {[%clk 0:03:01]}  Nbd7 {[%clk 0:02:40]} 9. d4 {[%clk 0:02:58]}  Nxe5 {[%clk 0:02:31]} 10. dxe5 {[%clk 0:02:59]}  Ne4 {[%clk 0:02:30]} 11. Nd2 {[%clk 0:02:53]}  Nc5 {[%clk 0:02:20]} 12. Qc2 {[%clk 0:02:49]}  dxc4 {[%clk 0:02:17]} 13. Nxc4 {[%clk 0:02:44]}  Bxg2 {[%clk 0:02:06]} 14. Kxg2 {[%clk 0:02:45]}  Qd5+ {[%clk 0:02:01]} 15. f3 {[%clk 0:02:45]}  Rad8 {[%clk 0:02:01]} 16. Rfd1 {[%clk 0:02:45]}  Qc6 {[%clk 0:01:52]} 17. e4 {[%clk 0:02:45]}  Rxd1 {[%clk 0:01:49]} 18. Rxd1 {[%clk 0:02:46]}  Rd8 {[%clk 0:01:49]} 19. Rxd8+ {[%clk 0:02:45]}  Bxd8 {[%clk 0:01:50]} 20. Qd2 {[%clk 0:02:33]}  Be7 {[%clk 0:01:49]} 21. Ba3 {[%clk 0:02:22]}  h6 {[%clk 0:01:34]} 22. Bxc5 {[%clk 0:02:21]}  Qxc5 {[%clk 0:01:11]} 23. a4 {[%clk 0:02:09]}  a6 {[%clk 0:00:43]} 24. f4 {[%clk 0:01:57]}  b5 {[%clk 0:00:25]} 25. axb5 {[%clk 0:01:57]}  axb5 {[%clk 0:00:26]} 26. Na5 {[%clk 0:01:58]}  Kh7 {[%clk 0:00:25]} 27. Kh3 {[%clk 0:01:50]}  Qa3 {[%clk 0:00:22]} 28. Nc6 {[%clk 0:01:46]}  Qc5 {[%clk 0:00:16]} 29. Qd7 {[%clk 0:01:46]}  Bf8 {[%clk 0:00:16]} 30. Nd8 {[%clk 0:01:37]}  Qf2 {[%clk 0:00:14]} 31. Qxf7 {[%clk 0:01:33]}  Qf1+ {[%clk 0:00:12]} 32. Kh4 {[%clk 0:01:33]}  Bc5 {[%clk 0:00:05]} 33. Nxe6 {[%clk 0:01:28]}  Bf8 {[%clk 0:00:01]} 34. Nxf8+ {[%clk 0:01:28]}  Kh8 {[%clk 0:00:00]} 35. Ng6+ {[%clk 0:01:28]} 1-0


[Site "https://www.chess.com"]

[Event "Titled Tuesday Blitz May 9 Early 2023"]
[White "Djokic, Mihailo"]
[Black "Kohler, Aran"]
[WhiteFideId "976440"]
[BlackFideId "1002856"]
[WhiteElo "2294"]
[BlackElo "2337"]
[Result "1-0"]
[Round "02"]
[TimeControl "180+2"]
[Date "2023.05.09"]
[WhiteClock "0:01:16"]
[BlackClock "0:00:19"]

1. e4 {[%clk 0:03:00]}  c6 {[%clk 0:02:59]} 2. d4 {[%clk 0:03:01]}  d5 {[%clk 0:03:00]} 3. e5 {[%clk 0:03:01]}  c5 {[%clk 0:03:00]} 4. dxc5 {[%clk 0:03:02]}  e6 {[%clk 0:02:59]} 5. Nf3 {[%clk 0:03:02]}  Bxc5 {[%clk 0:02:59]} 6. Bd3 {[%clk 0:03:03]}  Ne7 {[%clk 0:02:55]} 7. Nbd2 {[%clk 0:03:02]}  Ng6 {[%clk 0:02:52]} 8. Nb3 {[%clk 0:03:03]}  Be7 {[%clk 0:02:48]} 9. h4 {[%clk 0:02:45]}  Nc6 {[%clk 0:02:27]} 10. Qe2 {[%clk 0:02:41]}  Nxh4 {[%clk 0:02:14]} 11. Nxh4 {[%clk 0:02:36]}  Bxh4 {[%clk 0:02:14]} 12. Qg4 {[%clk 0:02:29]}  Be7 {[%clk 0:01:47]} 13. Qxg7 {[%clk 0:02:28]}  Kd7 {[%clk 0:01:47]} 14. Rxh7 {[%clk 0:02:08]}  Rxh7 {[%clk 0:01:44]} 15. Qxh7 {[%clk 0:01:53]}  Nxe5 {[%clk 0:01:38]} 16. Bb5+ {[%clk 0:01:53]}  Nc6 {[%clk 0:01:26]} 17. Qxf7 {[%clk 0:01:52]}  Qf8 {[%clk 0:01:27]} 18. Nc5+ {[%clk 0:01:47]}  Kd6 {[%clk 0:01:22]} 19. Qxf8 {[%clk 0:01:42]}  Bxf8 {[%clk 0:01:21]} 20. Nd3 {[%clk 0:01:39]}  e5 {[%clk 0:01:16]} 21. Bd2 {[%clk 0:01:24]}  a6 {[%clk 0:01:15]} 22. Bxc6 {[%clk 0:01:25]}  bxc6 {[%clk 0:01:15]} 23. Bb4+ {[%clk 0:01:25]}  Ke6 {[%clk 0:01:04]} 24. Bxf8 {[%clk 0:01:25]}  e4 {[%clk 0:01:04]} 25. Nc5+ {[%clk 0:01:24]}  Kf7 {[%clk 0:01:04]} 26. Bd6 {[%clk 0:01:23]}  Bg4 {[%clk 0:01:04]} 27. Kd2 {[%clk 0:01:22]}  Rd8 {[%clk 0:00:56]} 28. Bf4 {[%clk 0:01:22]}  d4 {[%clk 0:00:52]} 29. Nxe4 {[%clk 0:01:22]}  Ke6 {[%clk 0:00:45]} 30. Re1 {[%clk 0:01:20]}  Kf5 {[%clk 0:00:42]} 31. f3 {[%clk 0:01:17]}  Kxf4 {[%clk 0:00:41]} 32. fxg4 {[%clk 0:01:17]}  Kxg4 {[%clk 0:00:41]} 33. Rf1 {[%clk 0:01:16]}  Rb8 {[%clk 0:00:35]} 34. b3 {[%clk 0:01:16]}  a5 {[%clk 0:00:19]} 35. a4 {[%clk 0:01:16]} 1-0


[Site "https://www.chess.com"]